[Event "Israel Team Championship 2025"]
[Site "Israel"]
[Date "2025.01.15"]
[Round "4"]
[White "Bitensky, Igor"]
[Black "Axelrod, Arie"]
[Result "0-1"]
[Annotator "TA"]
[ECO "E67"]
[WhiteElo "2360"]
[BlackElo "2161"]
[PlyCount "62"]
[EventDate "2025.01.07"]
[EventType "team-tourn"]
[EventCountry "ISR"]
[SourceTitle "playchess.com"]
[Source "ChessBase"]
[SourceQuality "1"]
[TimeControl "40/5400+30:1800+30"]

{[%evp 15,62,11,14,9,52,38,39,-10,-9,-11,-18,-27,-9,-11,0,0,27,15,20,14,12,5,35,-97,-93,-112,-97,-110,-74,-204,-197,-221,-157,-302,-313,-691,-298,-845,-828,-3439,-3515,-2460,-1697,-2164,-2087,-29994,-29995,-29995,-29996]} 1. Nf3 Nf6 2. g3 g6 3. Bg2 Bg7 4. O-O O-O 5. c4 d6 6. d4 Nbd7 7. Nc3 e5 8. e3 c6 9. a4 {[%cal Ba2a4,Ba4a5][%mdl 32]} Nh5 10. a5 f5 11. b3 (11. dxe5 $14 {should be considered.} dxe5 12. e4) 11... e4 $11 12. Ne1 Ndf6 13. Nc2 a6 14. Qd2 d5 15. Na4 g5 {[%cal Of5f4]} 16. Ba3 Rf7 {[%cal Of5f4]} 17. Nb6 Rb8 $1 {[%cal Of5f4]} 18. cxd5 cxd5 {[%cal Of5f4]} 19. Qb4 {[#]} (19. f4 $14 {stays ahead.}) 19... Bf8 $1 $17 20. Qd2 {[#]} f4 $1 {[%mdl 512]} 21. Nxc8 {[%cal Re3f4] and exf4! should not be overlooked} (21. Bxf8 Qxf8) 21... Rxc8 22. Bxf8 (22. Rfc1 $17) 22... Qxf8 $19 23. Rfc1 Ng4 24. exf4 (24. Qd1 $17 f3 25. Bh3) 24... gxf4 25. Qb4 $2 (25. Ne1 Re8 26. Nd3) 25... Rfc7 (25... Qh6 $142 {( -> ...fxg3)} 26. Qb6 Nhf6) 26. Qd2 $2 (26. Qxf8+ Kxf8 27. Bh3) 26... Qh6 {[%cal Oh5g3] and ...Nxg3! should not be overlooked} 27. Nb4 {[#]} Nxg3 $1 {[%mdl 512]} 28. hxg3 Qh2+ 29. Kf1 f3 (29... fxg3 $2 30. Qg5+ (30. Nxd5 $2 {loses.} Rf8 $19) 30... Kh8 31. Rxc7 $18 (31. Nxd5 $2 Rf8 $19)) 30. Bxf3 exf3 {[%cal Rh2h1]} 31. Qg5+ Kh8 0-1

[Event "Israel Team Championship 2025"]
[Site "Israel"]
[Date "2025.01.15"]
[Round "4"]
[White "Sherman, Raem"]
[Black "Zlatin, Alexander"]
[Result "1/2-1/2"]
[Annotator "TA"]
[ECO "C42"]
[WhiteElo "2354"]
[BlackElo "2322"]
[PlyCount "149"]
[EventDate "2025.01.07"]
[EventType "team-tourn"]
[EventCountry "ISR"]
[SourceTitle "playchess.com"]
[Source "ChessBase"]
[SourceQuality "1"]
[TimeControl "40/5400+30:1800+30"]

{[%evp 32,149,90,74,64,40,46,35,24,35,41,33,36,0,0,0,0,0,0,0,0,-2,0,-4,-1,-7,0,-8,0,0,0,-7,0,0,0,0,0,-10,0,-9,0,0,0,0,0,0,0,0,0,0,0,0,0,0,0,0,0,0,0,0,0,0,0,0,0,0,0,0,0,0,0,0,0,0,0,0,0,0,0,0,0,0,0,0,0,0,0,0,0,0,0,0,0,0,0,0,0,0,0,0,0,0,0,0,0,0,0,0,0,0,0,0,0,0,0,0,0,0,0,0]} 1. e4 e5 2. Nf3 Nf6 3. Nc3 Bb4 4. Bd3 Nc6 5. h3 h6 6. O-O Bxc3 7. dxc3 d6 8. Re1 Be6 9. Be3 Rg8 10. b4 g5 11. Nh2 Ne7 12. c4 Ng6 13. c5 Nf4 14. cxd6 cxd6 15. c4 Nxd3 16. Qxd3 Qd7 17. Rad1 b6 18. Nf1 Rc8 19. Ng3 ({Much weaker is} 19. Qxd6 Qxd6 20. Rxd6 Rxc4 $15 (20... Nxe4 21. Rd3 $15)) (19. c5 {is interesting.} dxc5 20. Qa3 cxb4 21. Qxb4 Qe7 22. Qb5+) 19... Bxc4 20. Qxd6 Qxd6 21. Rxd6 Be6 22. f3 Ke7 23. Red1 Rgd8 24. Rxd8 Rxd8 25. Rxd8 Kxd8 26. a3 Kc7 27. Ne2 Ne8 28. Kf2 Nd6 29. Nc3 Nc4 30. Bc1 Kc6 31. g3 f6 32. h4 gxh4 33. gxh4 h5 34. Ke2 b5 35. Kf2 a6 36. Ne2 Bf7 37. f4 Kd6 38. f5 Be8 39. Nc3 Bc6 40. Ke2 Nb6 41. Kd3 Na4 42. Ne2 Be8 43. Be3 Bf7 44. Kc2 Bc4 45. Ng3 Bf7 46. Ba7 Kc6 47. Nh1 Nb6 48. Bxb6 Kxb6 49. Nf2 Bc4 50. Kc3 Be2 51. Kd2 Bc4 52. Nd1 Ba2 53. Kc2 Bc4 54. Nb2 Bf1 55. Kd2 a5 56. bxa5+ Kxa5 57. Ke3 b4 58. axb4+ Kxb4 59. Kf2 Bb5 60. Nd1 $1 Bd3 61. Ke3 Bc2 62. Nf2 Kc3 63. Nh3 Bb3 64. Ng1 Bd1 65. Nh3 $1 Bb3 66. Nf2 Bc2 67. Nh1 Bb3 68. Ng3 Bf7 69. Nf1 Bc4 70. Nd2 (70. Ng3 $5 Bf7 $8 71. Ne2+ Kc4 72. Ng3 $11) 70... Bd3 71. Nf3 Bc4 72. Ne1 Bf1 73. Nf3 Bc4 74. Ng1 Bf1 75. Nf3 1/2-1/2

[Event "Israel Team Championship 2025"]
[Site "Israel"]
[Date "2025.01.15"]
[Round "4"]
[White "Arlinsky, Uriel"]
[Black "Newman, Ori"]
[Result "0-1"]
[Annotator "TA"]
[ECO "A11"]
[WhiteElo "2322"]
[BlackElo "2276"]
[PlyCount "86"]
[EventDate "2025.01.07"]
[EventType "team-tourn"]
[EventCountry "ISR"]
[SourceTitle "playchess.com"]
[Source "ChessBase"]
[SourceQuality "1"]
[TimeControl "40/5400+30:1800+30"]

{[%evp 10,86,31,33,34,-11,-10,-26,-27,-22,0,-28,-27,-31,-6,-45,-18,-49,-53,-73,-45,-43,-27,-63,-64,-68,-58,-58,-28,-58,-4,-8,-4,-29,-18,-36,0,-68,-41,-49,0,-62,-55,-43,-10,-7,0,0,0,0,0,0,0,-30,-42,-77,-73,-82,-72,-70,-66,-71,-18,-166,-170,-182,-173,-183,-182,-194,-188,-193,-199,-256,-254,-259,-205,-249,-227]} 1. c4 c6 2. g3 d5 3. Bg2 Nf6 4. Nf3 Bf5 5. Qb3 Qb6 6. d3 e6 7. Qxb6 axb6 8. Nc3 Nbd7 9. O-O Be7 10. b3 O-O 11. Bb2 Nc5 12. h3 h6 13. Ne5 Rfd8 14. f4 Nfd7 15. Nxd7 Rxd7 16. cxd5 exd5 17. g4 Bh7 {Black is more active.} 18. f5 Bg5 19. Kh2 b5 (19... Bf6 $15) 20. d4 $11 Na6 21. a3 Be3 22. Nd1 Re8 23. b4 ({White should play} 23. Nxe3 $11 Rxe3 24. Bc1 Rxe2 (24... Rxb3 25. h4 $17) 25. Kg3) 23... Bg5 24. Nc3 $1 Be3 (24... Re3 $15) 25. Rad1 (25. Nd1 $1 $11) 25... Nc7 $15 26. h4 g6 27. Rd3 $1 Rde7 28. Nd1 $1 gxf5 29. gxf5 {aiming for Rf3.} h5 $1 30. Nxe3 Rxe3 31. Rxe3 Rxe3 32. Rf2 {[#]} Ne8 $1 33. Bc1 Rc3 34. Bg5 f6 35. Bh6 Nd6 (35... Rxa3 36. Bf3 Bxf5 37. Bxd5+ Kh7 (37... cxd5 38. Rxf5 Kf7 39. Rxd5 $11) 38. Rxf5 $11) (35... Kf7 $17 {[%cal Oe8d6] next ...Nd6! is good for Black.} 36. Bf3 Bxf5 37. Bxh5+ Bg6) 36. Bh3 (36. Bxd5+ $1 $11 {and White has nothing to worry.} cxd5 37. Rg2+ Kf7 (37... Kh8 38. Bg7+ Kg8 39. Bh6+ Kf7 40. Rg7+ Ke8 41. Rxh7 $15) 38. Rg7+ Ke8 39. Bf4) 36... Kf7 $1 $19 ({Not} 36... Rxa3 37. Rg2+ Kh8 38. Bg7+ Kg8 39. Bh6+ Kh8 40. Bg7+ Kg8 41. Bh6+ $11) 37. Bf4 Nxf5 38. Bxf5 Bxf5 {KRB-KRB. Black is a pawn up.} 39. Rf3 Rc2 40. Re3 Rc4 41. Bg3 (41. Bd6 $142) 41... Rxd4 42. Kg1 Rd2 43. Bf4 Ra2 0-1

[Event "Israel Team Championship 2025"]
[Site "Israel"]
[Date "2025.01.18"]
[Round "4"]
[White "Krayz, Alexander"]
[Black "Klenburg, Michael"]
[Result "1/2-1/2"]
[Annotator "TA"]
[ECO "B07"]
[WhiteElo "2300"]
[BlackElo "2332"]
[PlyCount "45"]
[EventDate "2025.01.07"]
[EventType "team-tourn"]
[EventCountry "ISR"]
[SourceTitle "playchess.com"]
[Source "ChessBase"]
[SourceQuality "1"]
[TimeControl "40/5400+30:1800+30"]

{[%evp 19,45,28,44,42,43,39,45,47,37,39,38,43,55,59,50,58,61,57,55,66,72,-50,-62,-53,-57,-127,-14,-28]} 1. e4 d6 2. d4 Nf6 3. Nc3 e5 4. Nf3 Nbd7 5. g3 g6 6. Bg2 Bg7 7. O-O O-O 8. Re1 a6 9. a4 b6 10. dxe5 dxe5 11. b3 Bb7 12. Ba3 Re8 13. Qe2 Bf8 14. Bxf8 Nxf8 15. Rad1 Qe7 16. Nd5 Nxd5 17. exd5 f6 18. Nd2 {White is more active.} Rad8 19. Qc4 {and d6+ should not be overlooked} Qf7 {[%cal Ob6b5]} 20. f4 (20. Ne4 $16) 20... Bxd5 $15 21. Bxd5 Qxd5 22. fxe5 (22. Qxc7 $15 exf4 23. Rxe8 (23. Qxb6 $2 Rxe1+ 24. Rxe1 Qxd2 $19) (23. Ne4 $2 Qxe4 24. Rxe4 Rxd1+ 25. Kf2 Rxe4 $19) 23... Rxe8 24. Qxf4 Qc5+ 25. Kg2) 22... Qxc4 ({But not} 22... fxe5 $6 23. Qxc7 Qd4+ 24. Kh1 $11) ({Black should try} 22... Rxe5 $17 {Hoping for ...Kg7.} 23. Kf1 Kh8) 23. Nxc4 1/2-1/2

[Event "Israel Team Championship 2025"]
[Site "Israel"]
[Date "2025.01.15"]
[Round "4"]
[White "Steiner-Prozhanski, Giora"]
[Black "Bar, Roman"]
[Result "1/2-1/2"]
[Annotator "TA"]
[ECO "E25"]
[WhiteElo "2258"]
[BlackElo "2458"]
[PlyCount "37"]
[EventDate "2025.01.07"]
[EventType "team-tourn"]
[EventCountry "ISR"]
[SourceTitle "playchess.com"]
[Source "ChessBase"]
[SourceQuality "1"]
[TimeControl "40/5400+30:1800+30"]

{[%evp 24,37,0,0,0,0,14,22,34,20,76,52,95,104,117,102]} 1. d4 Nf6 2. c4 e6 3. Nc3 Bb4 4. f3 d5 5. a3 Bxc3+ 6. bxc3 c5 7. cxd5 Nxd5 8. dxc5 Qa5 9. e4 Nf6 {[%cal Bd5f6,Bf6d7,Bd7c5][%mdl 32]} 10. Be3 O-O 11. Qb3 Nfd7 12. a4 {[%cal Ba3a4,Ba4a5][%mdl 32]} Qc7 13. Qa3 b6 14. a5 {Hoping for axb6.} Bb7 {[%cal Rd7c5]} 15. Ne2 Nxc5 16. Nd4 Qe5 (16... Nc6 $11) 17. Be2 $16 f5 {[%cal Bf7f5,Bf5e4][%mdl 32]} 18. O-O fxe4 {[#]} 19. f4 $1 1/2-1/2

[Event "Israel Team Championship 2025"]
[Site "Israel"]
[Date "2025.01.18"]
[Round "4"]
[White "Vagman, Roy"]
[Black "Kochavi, Ori"]
[Result "1/2-1/2"]
[Annotator "TA"]
[ECO "C77"]
[WhiteElo "2254"]
[BlackElo "2377"]
[PlyCount "59"]
[EventDate "2025.01.07"]
[EventType "team-tourn"]
[EventCountry "ISR"]
[SourceTitle "playchess.com"]
[Source "ChessBase"]
[SourceQuality "1"]
[TimeControl "40/5400+30:1800+30"]

{[%evp 9,59,0,15,5,4,5,0,0,0,0,0,0,6,0,0,0,24,15,20,0,7,0,-5,-27,-22,-30,-31,-31,-21,-47,-40,-37,-36,-40,0,0,0,0,0,0,0,0,0,0,0,0,41,0,0,0,0,-9]} 1. e4 e5 2. Nf3 Nc6 3. Bb5 {[%cal Bf1b5,Bb5a4,Ba4b3][%mdl 32]} a6 4. Ba4 Nf6 5. Nc3 Be7 6. a3 {C77: Ruy Lopez: 3...a6 4 Ba4 Nf6, unusual lines.} O-O (6... b5 $5 7. Bb3 $8 d6 $11) 7. d3 b5 8. Bb3 d6 9. h3 Na5 10. Ba2 Be6 11. d4 $146 (11. Nh2 c5 12. Ng4 c4 13. Nxf6+ Bxf6 14. O-O Rc8 15. Be3 Bg5 16. Qd2 Bxe3 17. fxe3 cxd3 18. Bxe6 fxe6 19. Rxf8+ Qxf8 {½-½ Predke,A (2685)-Kovalev,V (2559) CrunchLab Masters PlayIn rapid 2024 (7)}) 11... Bxa2 12. Rxa2 c5 13. dxe5 dxe5 14. Qxd8 Bxd8 15. Bg5 {[%cal Og5f6]} Nd7 16. Bxd8 Rfxd8 17. O-O f6 18. Nd5 c4 19. a4 {[#] And now axb5 would win.} b4 20. Nxb4 Nc5 21. Re1 Rab8 22. Nd5 Kf7 {[%cal Oc5e4]} ({Much weaker is} 22... Nxe4 $6 23. Ne7+ Kf7 (23... Kf8 24. Rxe4 Kxe7 25. Nxe5 $16) 24. Rxe4 $16 (24. Nxe5+ fxe5 25. Rxe4 Kf6 $17)) 23. Nd2 c3 24. bxc3 Nxe4 $1 25. Nxe4 Rxd5 26. g4 Kg6 27. Raa1 Rb2 28. Rec1 Nc4 29. Rab1 Ra2 {[%cal Oc4d2]} 30. Ra1 {Weighted Error Value: White=0.07 (flawless) /Black=0.06 (flawless)   Inaccurate:     	White=2     	Black=2      OK:         	White=13    	Black=10     Best:        	---       	Black=2      Strong:       	---       	Black=1      Brilliant:      	---       	Black=1} 1/2-1/2

[Event "Israel Team Championship 2025"]
[Site "Israel"]
[Date "2025.01.15"]
[Round "4"]
[White "Poleg, Matan"]
[Black "Rechlis, Gad"]
[Result "0-1"]
[Annotator "TA"]
[ECO "B07"]
[WhiteElo "2252"]
[BlackElo "2459"]
[PlyCount "74"]
[EventDate "2025.01.07"]
[EventType "team-tourn"]
[EventCountry "ISR"]
[SourceTitle "playchess.com"]
[Source "ChessBase"]
[SourceQuality "1"]
[TimeControl "40/5400+30:1800+30"]

{[%evp 9,74,34,41,37,50,31,47,48,66,54,63,0,-6,-12,0,-5,0,0,26,15,23,11,16,-27,-33,-31,19,19,26,-31,-29,-45,-15,-57,-58,-134,-131,-131,-137,-189,-183,-197,-189,-199,-164,-209,-206,-210,-203,-239,-199,-478,-228,-244,-210,-404,-405,-412,-416,-413,-378,-372,-380,-569,-566,-535,-547]} 1. e4 d6 2. d4 Nf6 3. Nc3 g6 4. f3 c6 5. g4 {[%cal Bg2g4,Bg4g5][%mdl 32]} b5 6. a3 Bg7 7. Be3 Qc7 8. Nge2 h5 9. g5 Nfd7 10. Qd2 (10. Bg2 $14) 10... Nb6 $11 11. b3 a5 12. Bg2 b4 13. Nd1 bxa3 14. Rxa3 {[%cal Oe1g1]} a4 15. O-O Ba6 16. Nb2 axb3 17. Rxb3 Nc4 {Prevents f4} ({Better is} 17... O-O $15) 18. Nxc4 Bxc4 19. Rb2 (19. Rb4 $11 d5 20. f4) 19... O-O $15 20. Rfb1 Nd7 21. Rb7 (21. f4 {simplifies} Rfb8 22. Rxb8+ Rxb8 23. Rxb8+ Qxb8 24. h4) 21... Qc8 $1 22. Bh3 ({White should try} 22. R7b4 $15 Ba2 23. Rd1) 22... Ne5 $1 $17 23. Bg2 {[#]} (23. Bxc8 Nxf3+ 24. Kf2 Nxd2 25. Bxd2 Rfxc8 26. Rxe7 Ra2 $17) 23... Ba6 $1 24. dxe5 (24. Rxe7 Nc4 25. Qc3 Nxe3 26. Qxe3 c5 (26... Bxe2 $2 27. Qxe2 Bxd4+ 28. Kh1 $19)) (24. R7b3 $17 Nc4 25. Qd1) 24... Bxb7 $19 25. exd6 exd6 26. Qxd6 Rd8 $36 {[%mdl 2048] Black is in control.} 27. Qc5 Qd7 28. e5 Bf8 29. Qb6 Ba6 30. Ng3 $2 (30. Nc3) 30... Be7 (30... Rab8 $142 31. Qxb8 Rxb8 32. Rxb8 h4 (32... Qd1+ 33. Nf1 $17)) 31. Ne4 Bb5 {and ...Ra6 would now be decisive} 32. Bc5 $2 (32. Bd2) 32... Ra6 33. Bxe7 Qd1+ (33... Rxb6 $2 34. Nf6+ Kg7 35. Nxd7 Rxd7 36. Bf6+ Kh7 37. c4 $18) (33... Qxe7 $2 34. Qe3 $19) 34. Rxd1 (34. Bf1 $2 Rxb6 35. Nf6+ Kh8 36. Rxd1 Rxd1 $19) 34... Rxd1+ ({And not} 34... Rxb6 35. Rxd8+ Kh7 36. Nf6+ Kg7 37. Rg8#) 35. Kf2 Rxb6 36. Bh3 (36. Bc5 {might work better.} Ra6 37. Kg3) 36... Bc4 37. Nf6+ Kh8 0-1

[Event "Israel Team Championship 2025"]
[Site "Israel"]
[Date "2025.01.15"]
[Round "4"]
[White "Poleg, Dan"]
[Black "Noy, Eyal"]
[Result "1/2-1/2"]
[Annotator "TA"]
[ECO "E12"]
[WhiteElo "2189"]
[BlackElo "2262"]
[PlyCount "142"]
[EventDate "2025.01.07"]
[EventType "team-tourn"]
[EventCountry "ISR"]
[SourceTitle "playchess.com"]
[Source "ChessBase"]
[SourceQuality "1"]
[TimeControl "40/5400+30:1800+30"]

{[%evp 10,142,0,5,40,46,53,49,37,32,85,29,28,39,28,0,0,-40,-5,-32,-37,-36,0,0,0,0,0,0,0,0,0,0,0,0,0,0,0,0,0,0,84,27,67,76,91,95,95,32,54,29,41,36,27,-30,-27,-37,0,0,0,-18,135,134,149,150,419,403,420,390,362,284,355,370,370,343,257,206,175,155,286,286,286,286,286,286,286,286,286,286,286,286,286,286,286,286,286,286,286,286,286,286,286,286,286,286,286,286,286,286,286,286,286,286,286,286,286,286,286,286,286,286,286,286,286,286,286,113,113,120,120,120,120,120,120,120,120]} 1. d4 Nf6 2. Nf3 e6 3. c4 b6 4. a3 Bb7 5. Nc3 d5 6. Bg5 h6 7. Bxf6 Qxf6 8. Qa4+ Bc6 9. Qb3 {[%cal Rc4d5]} Qd8 (9... Bd6 $14) 10. Ne5 (10. cxd5 $16 Bxd5 11. Nxd5 Qxd5 12. Qc3) 10... dxc4 $1 $11 11. Qxc4 Bb7 12. e4 Bd6 13. Be2 O-O 14. O-O c5 15. Rad1 {[%cal Oe5f7] Nxf7! would now be deadly.} cxd4 (15... Bxe5 {simplifies} 16. dxe5 Qe7 17. Qd3 Nc6) 16. Qxd4 Bc7 {A strong pair of Bishops.} 17. Qxd8 Rxd8 18. Rxd8+ Bxd8 19. Nb5 Nc6 (19... Bxe4 20. Rc1 f6 21. Nd6 (21. Rc8 Na6 $11) 21... fxe5 (21... Bd5 22. Rc8 $16) 22. Nxe4 $16) 20. Nxf7 Kxf7 21. Nd6+ Ke7 22. Nxb7 Nd4 23. Ba6 Bc7 24. f4 e5 (24... g5 $11 {keeps the balance.}) 25. f5 (25. Rc1 $16 Kd7 26. f5) 25... Rf8 26. Rc1 Kd7 27. a4 Rf6 28. Rd1 {White is more active.} (28. Rc3 $16) 28... Ke7 29. Bc4 Rc6 30. b3 Bb8 31. a5 (31. Rd3 $142) 31... Rc7 {[%mdl 1024] Black has compensation.} 32. a6 Rc6 33. Kf1 Bc7 34. Rd3 Rf6 $2 ({Better is} 34... b5 $11 35. Bd5 Rc1+ (35... Rxa6 36. Rg3 $14) 36. Kf2 Bb6) 35. Rg3 $16 Kf8 36. Bd5 {Prevents Rc6.} g5 $2 {[#]} (36... Nb5 $16 37. h4 h5) 37. h4 $1 $18 {[%mdl 512]} Nxf5 38. exf5 Rxf5+ 39. Rf3 Rf4 40. Rxf4+ exf4 41. h5 Ke7 42. Ke2 g4 43. Kd3 Kd7 (43... Kf6 $16 {was called for.} 44. Ke2 Kf5) 44. Ke4 f3 45. gxf3 gxf3 46. Kxf3 Bh2 47. Ke4 Bg3 48. Bf7 Kc7 49. Kd5 Bf4 50. Be6 Bg3 51. Bg4 Bf4 52. Ke6 Bg3 53. Ke7 Bh4+ 54. Ke8 Bg5 55. Bh3 Bh4 56. Kf7 Bg5 57. Kg6 Bf4 58. Kf5 Bg3 59. Kg4 Be5 60. Kf3 Bh2 61. Ke4 Bg3 62. Kf5 Bh2 63. b4 {[%cal Bb3b4,Bb4b5][%mdl 32]} Bg3 64. Ke6 Bf4 65. b5 Bg3 66. Kd5 Bf4 {[#]} 67. Nd8 $2 Kxd8 $16 68. Kc6 Bg3 69. Kb7 Bf4 70. Kxa7 {[%cal Oa7b7] White threatens Kb7! and mate.} Kc7 71. Bg2 Bg3 1/2-1/2

[Event "Israel Team Championship 2025"]
[Site "Israel"]
[Date "2025.01.15"]
[Round "4"]
[White "Zhemailov, Adam"]
[Black "Tarnopolsky, Anatoly"]
[Result "1/2-1/2"]
[Annotator "TA"]
[ECO "A07"]
[WhiteElo "2116"]
[BlackElo "2302"]
[PlyCount "104"]
[EventDate "2025.01.07"]
[EventType "team-tourn"]
[EventCountry "ISR"]
[SourceTitle "playchess.com"]
[Source "ChessBase"]
[SourceQuality "1"]
[TimeControl "40/5400+30:1800+30"]

{[%evp 9,104,0,0,-9,11,-4,0,12,23,16,20,28,33,31,41,10,18,22,29,0,50,19,79,60,109,0,0,0,0,0,0,0,0,0,0,-20,16,0,0,-4,8,23,39,27,17,-64,0,0,0,10,14,15,20,0,44,48,59,56,45,42,51,54,75,68,85,77,110,116,108,6,51,37,34,35,116,0,3,0,0,0,0,0,0,-36,-35,-42,0,0,0,0,0,0,0,0,0,0,0]} 1. Nf3 Nf6 2. g3 d5 3. Bg2 e6 4. O-O Be7 5. d3 O-O 6. a4 a5 7. Bf4 Nc6 8. Nc3 Bd6 9. Bxd6 cxd6 10. e4 d4 11. Nb5 e5 12. Nd2 Bg4 13. f3 Be6 14. f4 Na7 ({Black should try} 14... Ng4 $11) 15. Na3 Ng4 (15... h6 $11 {keeps the balance.}) 16. Ndc4 $16 Bxc4 (16... exf4 $14 17. gxf4 Rc8) 17. Qxg4 (17. Nxc4 $16 Ne3 18. Nxe3 dxe3 19. Qe2) 17... Ba6 $11 18. Qh5 Nc6 19. Rf2 Qe8 20. Bh3 Nb4 21. b3 b6 22. Raf1 f6 (22... Ra7 {seems wilder.} 23. fxe5 dxe5 24. Rf6 Nxc2 25. Nxc2 Bxd3 26. Na3 Bxf1 27. Rxf1 g6) 23. Qd1 Ra7 24. Bf5 Qe7 25. Qg4 Raa8 26. Be6+ Kh8 27. f5 {[#]} (27. Qh3 $11) 27... d5 28. exd5 (28. Bxd5 $2 Nxd5 29. Ra1 Ne3 $19) 28... Bb7 29. Nc4 $1 Qc5 30. d6 Nd5 31. h4 Ne3 32. Nxe3 dxe3 33. Re2 Qxd6 34. Rxe3 Qc5 35. Qe2 {Active counter play!} Rad8 36. Kh2 Rd4 37. Bc4 Rfd8 38. c3 R4d6 39. Kh3 ({White should play} 39. d4 $16 Qc8 40. Qg4 (40. dxe5 $2 Rd2 $19)) 39... Qc6 40. Re1 {[%cal Od3d4]} Qc8 $1 41. g4 {[%cal Od3d4]} h6 (41... Bc6 $14) 42. Rf1 (42. d4 $1 $16) 42... Bd5 43. Bxd5 Rxd5 44. g5 fxg5 45. hxg5 Qxc3 {[%cal Rd5d3]} 46. Rff3 hxg5 47. f6 g4+ (47... Qxb3 $2 48. f7 Rf8 (48... Qxa4 $2 49. f8=Q+ Kh7 50. Qf5+ g6 51. Qxg5 $18) 49. Rxe5 Rxe5 50. Qxe5 $18) 48. Kxg4 Rd4+ 49. Re4 gxf6 {...Kg7 would now be deadly.} (49... Qxb3 $2 {perishes.} 50. Qh2+ Kg8 51. f7+ $18 (51. Qxe5 R4d7 $11)) 50. Qh2+ $1 Kg7 51. Rxf6 Rxe4+ 52. dxe4 {Threatening mate with Qh6+.} Kxf6 1/2-1/2